Workbook

Sheet 公示
A1: 附件
A2: 都匀市总工会2023年公开招聘工会社会工作者总成绩排名及拟进入体检人员名单
A3: 序号 | B3: 姓名 | C3: 面试准考证号 | D3: 职位名称 | E3: 职位代码 | F3: 综合知识成绩 | G3: 加分分值 | H3: 笔试环节成绩 | I3: 面试成绩 | J3: 面试环节成绩 | K3: 综合成绩 | L3: 所报岗位排名 | M3: 是否进入体检
A4: 1 | B4: 蒙家念 | C4: 1060102 | D4: 都匀市服务职工中心（职工医疗互助）工作人员 | E4: 01 | F4: 71.00 | G4: 3.00 | H4: =(F4+G4)*0.6 -> 44.40 | I4: 80.80 | J4: =I4*0.4 -> 32.32 | K4: =J4+H4 -> 76.72 | L4: 1 | M4: 是
A5: 2 | B5: 郭昌蓉 | C5: 1060105 | D5: 都匀市服务职工中心（职工医疗互助）工作人员 | E5: 01 | F5: 76.00 | G5: 3.00 | H5: =(F5+G5)*0.6 -> 47.40 | I5: 70.40 | J5: =I5*0.4 -> 28.16 | K5: =J5+H5 -> 75.56 | L5: 2 | M5: 否
A6: 3 | B6: 张国敏 | C6: 1060101 | D6: 都匀市服务职工中心（职工医疗互助）工作人员 | E6: 01 | F6: 71.00 | G6: 3.00 | H6: =(F6+G6)*0.6 -> 44.40 | I6: 67.60 | J6: =I6*0.4 -> 27.04 | K6: =J6+H6 -> 71.44 | L6: 3 | M6: 否
A7: 4 | B7: 刘卓 | C7: 1060103 | D7: 都匀市服务职工中心（职工医疗互助）工作人员 | E7: 01 | F7: 73.00 | H7: 43.80 | I7: 67.20 | J7: =I7*0.4 -> 26.88 | K7: =J7+H7 -> 70.68 | L7: 4 | M7: 否
A8: 5 | B8: 刘易琳 | C8: 1060104 | D8: 都匀市服务职工中心（职工医疗互助）工作人员 | E8: 01 | F8: 74.00 | G8: 3.00 | H8: =(F8+G8)*0.6 -> 46.20 | I8: 缺考 | J8: —— | K8: —— | L8: —— | M8: 否
A9: 6 | B9: 舒雅琪 | C9: 1060107 | D9: 小围寨街道总工会工作人员 | E9: 02 | F9: 66.00 | H9: 39.60 | I9: 72.00 | J9: 28.80 | K9: 68.40 | L9: 1 | M9: 是
A10: 7 | B10: 蒙祖珍 | C10: 1060108 | D10: 小围寨街道总工会工作人员 | E10: 02 | F10: 70.00 | H10: 42.00 | I10: 64.40 | J10: 25.76 | K10: 67.76 | L10: 2 | M10: 否
A11: 8 | B11: 何润萍 | C11: 1060110 | D11: 小围寨街道总工会工作人员 | E11: 02 | F11: 67.00 | H11: =(F11+G11)*0.6 -> 40.20 | I11: 62.40 | J11: =I11*0.4 -> 24.96 | K11: =J11+H11 -> 65.16 | L11: 3 | M11: 否
A12: 9 | B12: 韩一成 | C12: 1060109 | D12: 小围寨街道总工会工作人员 | E12: 02 | F12: 65.00 | H12: 39.00 | I12: 51.00 | J12: 20.40 | K12: 59.40 | L12: 4 | M12: 否
A13: 10 | B13: 杨超碧 | C13: 1060106 | D13: 小围寨街道总工会工作人员 | E13: 02 | F13: 73.00 | H13: =(F13+G13)*0.6 -> 43.80 | I13: 缺考 | J13: —— | K13: —— | L13: —— | M13: 否
A14: 11 | B14: 赵德娟 | C14: 1060111 | D14: 文峰街道总工会工作人员 | E14: 03 | F14: 79.00 | G14: 3.00 | H14: 49.20 | I14: 76.60 | J14: 30.64 | K14: 79.84 | L14: 1 | M14: 是
A15: 12 | B15: 李元春 | C15: 1060114 | D15: 文峰街道总工会工作人员 | E15: 03 | F15: 81.00 | H15: =(F15+G15)*0.6 -> 48.60 | I15: 74.40 | J15: =I15*0.4 -> 29.76 | K15: =J15+H15 -> 78.36 | L15: 2 | M15: 否
A16: 13 | B16: 潘安彤 | C16: 1060112 | D16: 文峰街道总工会工作人员 | E16: 03 | F16: 77.00 | H16: 46.20 | I16: 75.40 | J16: 30.16 | K16: 76.36 | L16: 3 | M16: 否
A17: 14 | B17: 莫文森 | C17: 1060113 | D17: 文峰街道总工会工作人员 | E17: 03 | F17: 79.00 | H17: 47.40 | I17: 71.00 | J17: 28.40 | K17: 75.80 | L17: 4 | M17: 否
A18: 15 | B18: 曹新雨 | C18: 1060115 | D18: 文峰街道总工会工作人员 | E18: 03 | F18: 77.00 | H18: 46.20 | I18: 64.40 | J18: 25.76 | K18: 71.96 | L18: 5 | M18: 否
A19: 16 | B19: 宋德倩 | C19: 1060116 | D19: 毛尖镇工会联合会工作人员 | E19: 05 | F19: 81.00 | H19: 48.60 | I19: 73.20 | J19: 29.28 | K19: 77.88 | L19: 1 | M19: 是
A20: 17 | B20: 罗莎 | C20: 1060119 | D20: 毛尖镇工会联合会工作人员 | E20: 05 | F20: 75.00 | H20: =(F20+G20)*0.6 -> 45.00 | I20: 68.80 | J20: =I20*0.4 -> 27.52 | K20: =J20+H20 -> 72.52 | L20: 2 | M20: 否
A21: 18 | B21: 张玲 | C21: 1060117 | D21: 毛尖镇工会联合会工作人员 | E21: 05 | F21: 75.00 | G21: 3.00 | H21: 46.80 | I21: 64.00 | J21: 25.60 | K21: 72.40 | L21: 3 | M21: 否
A22: 19 | B22: 钱家顺 | C22: 1060118 | D22: 毛尖镇工会联合会工作人员 | E22: 05 | F22: 70.00 | H22: 42.00 | I22: 60.20 | J22: 24.08 | K22: 66.08 | L22: 4 | M22: 否
A23: 20 | B23: 林钰倩 | C23: 1060120 | D23: 毛尖镇工会联合会工作人员 | E23: 05 | F23: 68.00 | H23: 40.80 | I23: 18.80 | J23: 7.52 | K23: 48.32 | L23: 5 | M23: 否
A24: 21 | B24: 易鑫 | C24: 1060201 | D24: 归兰乡工会联合会工作人员 | E24: 06 | F24: 78.00 | H24: =(F24+G24)*0.6 -> 46.80 | I24: 71.40 | J24: =I24*0.4 -> 28.56 | K24: =J24+H24 -> 75.36 | L24: 1 | M24: 是
A25: 22 | B25: 潘兴朗 | C25: 1060204 | D25: 归兰乡工会联合会工作人员 | E25: 06 | F25: 79.00 | H25: 47.40 | I25: 66.80 | J25: =I25*0.4 -> 26.72 | K25: =J25+H25 -> 74.12 | L25: 2 | M25: 否
A26: 23 | B26: 白朝倩 | C26: 1060205 | D26: 归兰乡工会联合会工作人员 | E26: 06 | F26: 68.00 | H26: 40.80 | I26: 83.00 | J26: =I26*0.4 -> 33.20 | K26: =J26+H26 -> 74.00 | L26: 3 | M26: 否
A27: 24 | B27: 吴庆暖 | C27: 1060203 | D27: 归兰乡工会联合会工作人员 | E27: 06 | F27: 64.00 | H27: 38.40 | I27: 65.20 | J27: =I27*0.4 -> 26.08 | K27: =J27+H27 -> 64.48 | L27: 4 | M27: 否
A28: 25 | B28: 韦小米 | C28: 1060202 | D28: 归兰乡工会联合会工作人员 | E28: 06 | F28: 81.00 | H28: 48.60 | I28: 缺考 | J28: —— | K28: —— | L28: —— | M28: 否
A29: 26 | B29: 许文丽 | C29: 1060207 | D29: 绿茵湖产业园区总工会工作人员 | E29: 07 | F29: 75.00 | H29: 45.00 | I29: 73.20 | J29: =I29*0.4 -> 29.28 | K29: =J29+H29 -> 74.28 | L29: 1 | M29: 是
A30: 27 | B30: 桂永坤 | C30: 1060212 | D30: 绿茵湖产业园区总工会工作人员 | E30: 07 | F30: 68.00 | H30: 40.80 | I30: 79.40 | J30: 31.76 | K30: 72.56 | L30: 2 | M30: 否
A31: 28 | B31: 田孟秋 | C31: 1060209 | D31: 绿茵湖产业园区总工会工作人员 | E31: 07 | F31: 62.00 | G31: 6.00 | H31: 40.80 | I31: 79.40 | J31: 31.76 | K31: 72.56 | L31: 2 | M31: 否
A32: 29 | B32: 杨仕先 | C32: 1060206 | D32: 绿茵湖产业园区总工会工作人员 | E32: 07 | F32: 71.00 | G32: 3.00 | H32: 44.40 | I32: 68.40 | J32: 27.36 | K32: 71.76 | L32: 4 | M32: 否
A33: 30 | B33: 李沛琼 | C33: 1060211 | D33: 绿茵湖产业园区总工会工作人员 | E33: 07 | F33: 68.00 | H33: 40.80 | I33: 74.80 | J33: 29.92 | K33: 70.72 | L33: 5 | M33: 否
A34: 31 | B34: 莫绍媛 | C34: 1060210 | D34: 绿茵湖产业园区总工会工作人员 | E34: 07 | F34: 68.00 | H34: 40.80 | I34: 71.00 | J34: 28.40 | K34: 69.20 | L34: 6 | M34: 否
A35: 32 | B35: 戴与 | C35: 1060213 | D35: 绿茵湖产业园区总工会工作人员 | E35: 07 | F35: 69.00 | H35: 41.40 | I35: 69.40 | J35: 27.76 | K35: 69.16 | L35: 7 | M35: 否
A36: 33 | B36: 韦广欢 | C36: 1060208 | D36: 绿茵湖产业园区总工会工作人员 | E36: 07 | F36: 71.00 | H36: 42.60 | I36: 缺考 | J36: —— | K36: —— | L36: —— | M36: 否
A37: 34 | B37: 韦帮亮 | C37: 1060215 | D37: 墨冲镇工会联合会工作人员 | E37: 04 | F37: 80.00 | H37: 48.00 | I37: 67.00 | J37: =I37*0.4 -> 26.80 | K37: =J37+H37 -> 74.80 | L37: 1 | M37: 是
A38: 35 | B38: 唐正兰 | C38: 1060216 | D38: 墨冲镇工会联合会工作人员 | E38: 04 | F38: 68.00 | G38: 3.00 | H38: 42.60 | I38: 73.80 | J38: =I38*0.4 -> 29.52 | K38: =J38+H38 -> 72.12 | L38: 2 | M38: 否
A39: 36 | B39: 韦加燕 | C39: 1060214 | D39: 墨冲镇工会联合会工作人员 | E39: 04 | F39: 66.00 | H39: 39.60 | I39: 72.20 | J39: =I39*0.4 -> 28.88 | K39: =J39+H39 -> 68.48 | L39: 3 | M39: 否
A40: 37 | B40: 陆光影 | C40: 1060219 | D40: 墨冲镇工会联合会工作人员 | E40: 04 | F40: 66.00 | H40: 39.60 | I40: 65.40 | J40: =I40*0.4 -> 26.16 | K40: =J40+H40 -> 65.76 | L40: 4 | M40: 否
A41: 38 | B41: 高维娇 | C41: 1060220 | D41: 墨冲镇工会联合会工作人员 | E41: 04 | F41: 73.00 | G41: 3.00 | H41: 45.60 | I41: 缺考 | J41: —— | K41: —— | L41: —— | M41: 否
A42: 39 | B42: 陆周刚 | C42: 1060218 | D42: 墨冲镇工会联合会工作人员 | E42: 04 | F42: 69.00 | H42: 41.40 | I42: 缺考 | J42: —— | K42: —— | L42: —— | M42: 否
A43: 40 | B43: 罗永杰 | C43: 1060217 | D43: 墨冲镇工会联合会工作人员 | E43: 04 | F43: 66.00 | H43: 39.60 | I43: 缺考 | J43: —— | K43: —— | L43: —— | M43: 否
